bitfinex/quotes_BTCUSD_20250108
["timestamp","ask_amount","ask_price","bid_price","bid_amount"]
[1736335901351,0.5241179,95573.0,95566.0,0.209279]
[1736335901352,0.5241179,95573.0,95569.0,0.001]
[1736335901552,0.5241179,95573.0,95572.0,0.01136465]
[1736335901813,0.52281,95573.0,95569.0,0.001]
[1736335902020,0.52281,95573.0,95572.0,0.01136465]
[1736335902245,0.52281,95573.0,95571.0,0.001]
[1736335902629,0.52281,95573.0,95572.0,0.01136465]
[1736335902833,0.52281,95573.0,95571.0,0.001]
[1736335903223,0.52281,95573.0,95572.0,0.01136465]
[1736335903428,0.52281,95573.0,95571.0,0.001]
[1736335903429,0.59781,95573.0,95571.0,0.001]
[1736335903649,0.00130807,95572.0,95571.0,0.001]
[1736335903865,0.52411807,95572.0,95571.0,0.001]
[1736335904050,0.52281,95572.0,95558.0,0.0538]
[1736335904250,0.21057707,95571.0,95562.0,0.00013639]
[1736335904428,0.73338707,95571.0,95569.0,0.001]
[1736335904831,0.73338707,95571.0,95562.0,0.00013639]
[1736335905246,0.52411807,95571.0,95562.0,0.00113639]
[1736335905589,0.52411807,95571.0,95563.0,0.01137905]
[1736335906236,0.20927,95570.0,95563.0,0.01137905]
[1736335906469,0.209275,95568.0,95563.0,0.01137905]
[1736335906682,0.0752,95566.0,95562.0,0.00013639]
[1736335906898,0.209283,95564.0,95562.0,0.00013639]
[1736335907122,0.00130815,95563.0,95562.0,0.00113639]
[1736335907366,0.52411815,95563.0,95562.0,0.00113639]
[1736335907587,0.52281,95563.0,95562.0,0.00113639]
[1736335907822,0.52281,95563.0,95562.0,0.00013639]
[1736335908468,0.53305719,95563.0,95562.0,0.00013639]
[1736335909601,0.52281,95563.0,95562.0,0.00013639]
[1736335911173,0.732096,95563.0,95562.0,0.00013639]
[1736335912424,0.780296,95563.0,95562.0,0.00013639]
[1736335917734,0.88459576,95563.0,95562.0,0.00013639]
[1736335917966,0.88459576,95563.0,95555.0,0.1]
[1736335917967,1.09339552,95563.0,95555.0,0.1]
[1736335918185,0.1,95547.0,95545.0,0.014363]
[1736335918396,0.3771,95536.0,95532.0,8.53e-05]
[1736335918614,0.1,95533.0,95532.0,8.53e-05]
[1736335918840,0.2,95519.0,95513.0,0.40978923]
[1736335919067,0.359393,95514.0,95513.0,0.35364644]
[1736335919306,0.309419,95502.0,95501.0,0.00071885]
[1736335919516,0.83652876,95502.0,95501.0,0.00071885]
[1736335919741,0.83652876,95502.0,95501.0,0.00122866]
[1736335919977,0.52281,95502.0,95501.0,0.00050981]
[1736335920215,0.5334954,95502.0,95501.0,0.00050981]
[1736335920639,0.52281,95502.0,95501.0,0.00050981]
[1736335921063,0.52581,95502.0,95501.0,0.00050981]
[1736335921286,0.52581,95502.0,95501.0,0.20993081]
[1736335921734,0.52281,95502.0,95501.0,0.20993081]
[1736335921962,0.52281,95502.0,95501.0,1.81423057]
[1736335922425,0.52281,95502.0,95501.0,1.82607496]
[1736335923263,0.52381,95502.0,95501.0,1.82607496]
[1736335923680,0.52281,95502.0,95501.0,1.82607496]
[1736335923906,0.52281,95502.0,95501.0,1.88131496]
[1736335924127,0.52281,95502.0,95501.0,2.03531496]
[1736335924365,0.4181,95502.0,95501.0,2.23531496]
[1736335924575,0.0462,95552.0,95518.0,0.1]
[1736335924790,0.57087836,95552.0,95545.0,0.209323]
[1736335925009,0.56957,95552.0,95545.0,0.05524]
[1736335925229,0.56957,95552.0,95546.0,0.01172421]
[1736335925446,0.00130831,95551.0,95545.0,0.05524]
[1736335925665,0.52467831,95551.0,95545.0,0.05524]
[1736335926328,0.52467831,95551.0,95545.0,5.095e-05]
[1736335926965,0.209314,95550.0,95545.0,5.095e-05]
[1736335927168,0.00130839,95549.0,95545.0,5.095e-05]
[1736335927383,0.52467839,95549.0,95545.0,5.095e-05]
[1736335928045,0.52337,95549.0,95545.0,5.095e-05]
[1736335928269,0.52337,95549.0,95546.0,0.01172421]
[1736335928489,0.52337,95549.0,95545.0,5.095e-05]
[1736335928700,0.52437,95549.0,95546.0,0.01172421]
[1736335928917,0.00130834,95548.0,95545.0,5.095e-05]
[1736335929128,0.52467834,95548.0,95546.0,0.01172421]
[1736335929334,0.52467834,95548.0,95545.0,0.05529095]
[1736335929590,0.52467834,95548.0,95546.0,0.01172421]
[1736335930015,0.52467834,95548.0,95545.0,0.05529095]
[1736335930016,0.52337,95548.0,95545.0,0.26461595]
[1736335930234,0.00130829,95547.0,95545.0,0.26461595]
[1736335930438,0.52467829,95547.0,95546.0,0.01172421]
[1736335930644,0.52337,95547.0,95546.0,0.01172421]
[1736335931333,0.52337,95547.0,95546.0,0.06696421]
[1736335932859,0.52337,95547.0,95546.0,0.06796421]
[1736335933276,0.52337,95547.0,95546.0,0.06696421]
[1736335934840,0.52337,95547.0,95546.0,0.06796421]
[1736335935048,0.52337,95547.0,95546.0,0.17226397]
[1736335935674,0.52337,95547.0,95546.0,1.67226397]
[1736335935884,0.52337,95547.0,95546.0,1.67122397]
[1736335936086,0.52337,95547.0,95546.0,1.51172421]
[1736335936317,0.52337,95547.0,95546.0,0.07092421]
[1736335936708,0.52337,95547.0,95546.0,0.01572421]
[1736335936910,0.52337,95547.0,95546.0,0.0592]
[1736335937113,0.52337,95547.0,95546.0,0.07125779]
[1736335937417,0.52337,95547.0,95546.0,0.01605779]
[1736335937837,0.52337,95547.0,95546.0,0.004]
[1736335938279,0.52337,95547.0,95545.0,5.095e-05]
[1736335938701,0.52337,95547.0,95546.0,0.01505779]
[1736335939579,0.52337,95547.0,95545.0,5.095e-05]
[1736335939807,0.21063143,95546.0,95545.0,0.00105095]
[1736335940012,0.732693,95546.0,95545.0,0.00105095]
[1736335940198,0.52337,95546.0,95545.0,0.00105095]
[1736335940739,0.97626966,95546.0,95545.0,0.00105095]
[1736335940943,0.88206976,95546.0,95545.0,0.00105095]
[1736335941189,0.89246985,95546.0,95545.0,5.095e-05]
[1736335942227,0.89546985,95546.0,95545.0,5.095e-05]
[1736335942652,0.86206976,95546.0,95545.0,5.095e-05]
[1736335942866,0.60777,95546.0,95545.0,5.095e-05]
[1736335944341,0.60477,95546.0,95545.0,5.095e-05]
[1736335944748,0.60777,95546.0,95545.0,5.095e-05]
[1736335945186,0.60477,95546.0,95545.0,5.095e-05]
[1736335946282,0.814093,95546.0,95545.0,5.095e-05]
[1736335946497,0.91839276,95546.0,95545.0,5.095e-05]
[1736335946729,0.94139276,95546.0,95545.0,5.095e-05]
[1736335947397,1.04569252,95546.0,95545.0,5.095e-05]
[1736335947610,0.0783,95544.0,95511.0,0.209398]
[1736335947828,0.1306,95528.0,95511.0,0.00050981]
[1736335948043,0.1306,95528.0,95512.0,0.01214858]
[1736335948044,0.209375,95523.0,95512.0,0.01214858]
[1736335948247,0.00130881,95522.0,95511.0,0.00050981]
[1736335948454,0.00130882,95521.0,95511.0,0.00050981]
[1736335948670,0.52467882,95521.0,95511.0,0.00050981]
[1736335948872,0.52467882,95521.0,95511.0,0.20990781]
[1736335949323,0.52467882,95521.0,95513.0,0.209395]
[1736335949705,0.52467882,95521.0,95514.0,0.01214324]
[1736335949935,0.52467882,95521.0,95520.0,0.20938]
[1736335949936,0.52337,95521.0,95520.0,0.20938]
[1736335950145,0.52337,95521.0,95520.0,0.22150721]
[1736335952704,0.52337,95521.0,95520.0,0.01212721]
[1736335953159,0.52337,95521.0,95520.0,0.01266529]
[1736335953327,0.52337,95521.0,95520.0,0.001]
[1736335953528,0.52337,95521.0,95520.0,0.01366529]
[1736335953754,0.52337,95521.0,95520.0,0.01266529]
[1736335953914,0.52337,95521.0,95514.0,0.209393]
[1736335954112,0.00130873,95520.0,95515.0,0.01267864]
[1736335954320,0.52467873,95520.0,95515.0,0.01267864]
[1736335954589,0.52467873,95520.0,95514.0,0.209391]
[1736335954983,0.52467873,95520.0,95515.0,0.01292364]
[1736335955736,0.51677,95520.0,95516.0,0.418777]
[1736335955948,0.51677,95520.0,95518.0,0.209384]
[1736335956189,0.51677,95520.0,95519.0,0.01291296]
[1736335959111,0.51677,95520.0,95519.0,0.01391296]
[1736335960705,0.56297,95520.0,95519.0,0.01391296]
[1736335960907,0.56297,95520.0,95519.0,0.001]
[1736335961669,0.56297,95520.0,95517.0,0.209386]
[1736335961876,0.51677,95520.0,95517.0,0.418772]
[1736335962081,0.51677,95520.0,95518.0,0.01291563]
[1736335962287,0.51677,95520.0,95519.0,0.209382]
[1736335962750,0.51677,95520.0,95519.0,0.22229496]
[1736335963042,0.51777,95520.0,95519.0,0.22229496]
[1736335963387,0.51677,95520.0,95519.0,0.22229496]
[1736335964138,0.51677,95520.0,95519.0,0.22329496]
[1736335965794,0.51677,95520.0,95519.0,0.01391296]
[1736335965927,0.59317,95520.0,95519.0,0.01391296]
[1736335966129,0.59317,95520.0,95519.0,0.001]
[1736335968281,0.59317,95520.0,95519.0,0.01391296]
[1736335968460,0.59317,95520.0,95519.0,0.001]
[1736335968700,0.59317,95520.0,95519.0,0.01391296]
[1736335968906,0.59317,95520.0,95519.0,0.001]
[1736335969758,0.51677,95520.0,95519.0,0.001]
[1736335969963,0.51677,95520.0,95519.0,0.01391296]
[1736335970191,0.59317,95520.0,95519.0,0.001]
[1736335970791,0.85125,95520.0,95519.0,0.001]
[1736335970908,0.89616976,95520.0,95500.0,0.00420236]
[1736335971109,0.609546,95444.0,95443.0,0.04585596]
[1736335971339,0.409586,95426.0,95401.0,0.14437558]
[1736335971539,0.3,95424.0,95409.0,0.00071887]
[1736335971737,0.1,95376.0,95355.0,0.209742]
[1736335971935,0.1,95371.0,95356.0,0.05772]
[1736335972212,0.00131079,95370.0,95357.0,0.00784281]
[1736335972420,0.00131079,95370.0,95367.0,0.00051042]
[1736335972626,0.00131079,95370.0,95369.0,1.5]
[1736335972831,0.51677,95371.0,95369.0,1.5]
[1736335972832,0.51677,95371.0,95370.0,0.209709]
[1736335973037,0.51677,95371.0,95370.0,0.31400876]
[1736335973244,0.51677,95371.0,95370.0,0.41830852]
[1736335973656,0.51677,95371.0,95370.0,0.56830852]
[1736335973861,0.51677,95371.0,95370.0,0.66650578]
[1736335974066,0.23222086,95389.0,95370.0,0.66650578]
[1736335974067,0.23222086,95377.0,95374.0,0.15]
[1736335974272,0.23222086,95377.0,95375.0,0.10429976]
[1736335974477,0.23222086,95377.0,95376.0,0.10565995]
[1736335974687,0.27866504,95392.0,95378.0,0.023]
[1736335974893,0.31349817,95407.0,95377.0,0.209694]
[1736335974894,0.31349817,95407.0,95404.0,0.023]
[1736335975098,0.27817151,95409.0,95406.0,0.023]
[1736335975358,0.31349817,95427.0,95407.0,0.16613976]
[1736335975564,0.83751817,95427.0,95424.0,0.20959]
[1736335975769,0.09263078,95421.0,95408.0,0.01661398]
[1736335975982,0.09263078,95421.0,95410.0,0.023]
[1736335975983,0.00131005,95420.0,95410.0,0.023]
[1736335976187,0.52533005,95420.0,95410.0,0.023]
[1736335976590,0.52402,95420.0,95419.0,0.232601]
[1736335976728,0.52402,95420.0,95419.0,0.2558611]
[1736335977131,0.52402,95420.0,95419.0,0.3177011]
[1736335977356,0.52502,95420.0,95419.0,0.3177011]
[1736335977867,0.52402,95420.0,95419.0,0.3177011]
[1736335978329,0.52402,95420.0,95419.0,0.2558611]
[1736335978529,0.52402,95420.0,95419.0,0.3177011]
[1736335979078,0.52402,95420.0,95419.0,1.8177011]
[1736335981164,0.52402,95420.0,95419.0,1.8087011]
[1736335981749,0.52402,95420.0,95419.0,1.7458611]
[1736335981954,0.52402,95420.0,95419.0,1.85116086]
[1736335982451,0.52402,95420.0,95419.0,1.86453055]
[1736335982653,0.52402,95420.0,95419.0,1.92637055]
[1736335983731,0.52402,95420.0,95419.0,1.92537055]
[1736335983940,0.52402,95420.0,95419.0,1.92637055]
[1736335984139,0.52402,95420.0,95419.0,0.42637055]
[1736335984377,0.52402,95420.0,95419.0,0.36453055]
[1736335984594,0.52402,95420.0,95419.0,0.09820969]
[1736335984811,0.52402,95420.0,95419.0,0.20250945]
[1736335985039,0.52402,95420.0,95419.0,0.20350945]
[1736335985450,0.1,95458.0,95450.0,0.209533]
[1736335985657,0.20946,95484.0,95450.0,0.209533]
[1736335985658,0.1,95462.0,95450.0,0.3153263]
[1736335985864,0.1,95456.0,95450.0,0.32611651]
[1736335986082,0.64151639,95451.0,95450.0,0.11658351]
[1736335986292,0.64151639,95451.0,95450.0,0.09358351]
[1736335986493,0.64151639,95451.0,95450.0,0.06184]
[1736335986900,0.64151639,95451.0,95450.0,0.06189087]
[1736335987311,0.64151639,95451.0,95450.0,0.07268108]
[1736335987523,0.64151639,95451.0,95450.0,0.09568108]
[1736335988769,0.64151639,95451.0,95450.0,0.19998084]
[1736335988976,0.03079963,95503.0,95451.0,0.023]
[1736335988977,0.1,95481.0,95451.0,0.023]
[1736335989192,0.1,95486.0,95452.0,0.31382876]
[1736335989404,0.1,95497.0,95462.0,0.10429976]
[1736335989584,0.00130907,95496.0,95463.0,0.023]
[1736335989824,0.00130907,95495.0,95465.0,0.023]
[1736335990047,0.52497907,95495.0,95492.0,0.209441]
[1736335990258,0.52367,95495.0,95494.0,0.209437]
[1736335990471,0.54293617,95495.0,95494.0,0.209437]
[1736335990682,0.54293617,95495.0,95494.0,0.22013899]
[1736335991101,0.54293617,95495.0,95494.0,0.28197899]
[1736335991275,0.54293617,95495.0,95494.0,0.35206599]
[1736335991538,0.74293617,95495.0,95494.0,0.01075286]
[1736335991793,0.99823593,95495.0,95494.0,5.087e-05]
[1736335992434,0.79393617,95495.0,95494.0,5.087e-05]
[1736335992858,0.89393617,95495.0,95494.0,5.087e-05]
[1736335993675,0.89293617,95495.0,95494.0,5.087e-05]
[1736335993996,1.00023593,95495.0,95494.0,5.087e-05]
[1736335994381,0.99723593,95495.0,95494.0,5.087e-05]
[1736335994722,0.99723593,95495.0,95460.0,0.00071916]
[1736335994723,0.559509,95461.0,95460.0,0.00071916]
[1736335994933,1.083179,95461.0,95460.0,0.00085293]
[1736335995140,1.18747876,95461.0,95460.0,0.00085293]
[1736335995353,1.18747876,95461.0,95460.0,0.00013377]
[1736335995795,0.983179,95461.0,95460.0,0.00013377]
[1736335995996,1.1332989,95461.0,95460.0,0.00013377]
[1736335996198,1.14101233,95461.0,95460.0,0.00013377]
[1736335996965,0.58550333,95461.0,95460.0,0.00013377]
[1736335997164,0.58550333,95461.0,95460.0,0.00863115]
[1736335997367,0.54693617,95461.0,95460.0,0.00863115]
[1736335997569,0.54293617,95461.0,95460.0,0.00863115]
[1736335997996,0.54693617,95461.0,95460.0,0.00863115]
[1736335998215,0.54693617,95461.0,95460.0,0.00013377]
[1736335998407,0.64693617,95461.0,95460.0,0.00013377]
[1736335998604,0.54693617,95461.0,95460.0,0.00013377]
[1736335998982,0.64693617,95461.0,95460.0,0.06197377]
[1736335999185,0.74293617,95461.0,95460.0,0.06197377]
[1736335999395,0.74293617,95461.0,95460.0,0.00013377]
[1736335999977,0.79293617,95461.0,95460.0,0.00013377]
[1736336000176,0.79293617,95461.0,95428.0,0.00071916]
[1736336000177,0.2,95440.0,95428.0,0.00071916]
[1736336000505,0.00130986,95439.0,95429.0,0.00625592]
[1736336000705,0.52497986,95439.0,95430.0,0.06184]
[1736336000908,0.1,95438.0,95430.0,0.06184]
[1736336001251,0.1,95430.0,95429.0,0.06184]
[1736336001446,0.62367,95430.0,95428.0,0.0619737]
[1736336001662,0.62367,95430.0,95429.0,0.06803737]
[1736336002442,0.62367,95430.0,95429.0,0.00619737]
[1736336002640,0.35,95429.0,95428.0,0.0001337]
[1736336002988,0.97796976,95429.0,95428.0,0.0001337]
[1736336003394,1.02496976,95429.0,95428.0,0.0001337]
[1736336003598,1.12496976,95429.0,95428.0,0.0001337]
[1736336003807,1.17518176,95429.0,95428.0,7e-07]
[1736336004008,1.27518176,95429.0,95428.0,7e-07]
[1736336004246,0.559641,95401.0,95396.0,0.00071916]
[1736336004468,1.083311,95401.0,95400.0,0.00062602]
[1736336005419,0.88140581,95401.0,95400.0,0.00062602]
[1736336005625,0.88340581,95401.0,95400.0,0.00062602]
[1736336006603,0.93361781,95401.0,95400.0,0.00062602]
[1736336006812,0.925882,95401.0,95400.0,0.00062602]
[1736336007101,0.925882,95401.0,95373.0,0.209701]
[1736336007102,0.209711,95369.0,95337.0,4e-05]
[1736336007290,0.2,95338.0,95337.0,4e-05]
[1736336007609,0.62367,95338.0,95337.0,4e-05]
[1736336008018,0.1,95336.0,95335.0,4.99504]
[1736336008225,0.72367,95336.0,95335.0,4.99504]
[1736336008642,0.7241745,95336.0,95335.0,4.99504]
[1736336009273,1.18795826,95336.0,95335.0,4.974061]
[1736336009489,1.16925826,95336.0,95335.0,4.953082]
[1736336009711,1.51925826,95336.0,95335.0,3.970187]
[1736336009926,0.759828,95316.0,95315.0,9e-05]
[1736336010139,1.38779776,95316.0,95315.0,9e-05]
[1736336010564,1.45179776,95316.0,95315.0,9e-05]
[1736336010781,1.47479776,95316.0,95315.0,9e-05]
[1736336011016,0.55,95315.0,95314.0,1.3e-07]
[1736336011232,0.2,95312.0,95304.0,0.00042152]
[1736336011455,1.27928166,95312.0,95311.0,0.4009632]
[1736336011685,0.4,95304.0,95303.0,0.25311136]
[1736336011901,0.4,95304.0,95250.0,0.04435298]
[1736336011902,0.35,95251.0,95250.0,0.04435298]
[1736336012139,0.97796976,95251.0,95250.0,0.04435298]
[1736336012555,0.62367,95251.0,95250.0,0.14865274]
[1736336012767,0.52367,95251.0,95250.0,0.14865274]
[1736336013019,0.52367,95251.0,95250.0,0.16181027]
[1736336013240,0.52367,95251.0,95250.0,0.14865274]
[1736336013241,0.52417388,95251.0,95250.0,0.14865274]
[1736336013414,0.52417388,95251.0,95250.0,0.05251051]
[1736336013652,0.52417388,95251.0,95250.0,0.03935298]
[1736336014095,0.52417388,95251.0,95250.0,0.23069274]
[1736336014307,0.52517388,95251.0,95250.0,0.23069274]
[1736336014511,0.52517388,95251.0,95250.0,0.28411003]
[1736336014726,0.52517388,95251.0,95250.0,0.25429274]
[1736336014945,0.52517388,95251.0,95250.0,0.16315051]
[1736336014946,0.52417388,95251.0,95250.0,0.16315051]
[1736336015584,0.52417388,95251.0,95250.0,0.29045027]
[1736336015996,0.44607388,95251.0,95250.0,0.37025027]
[1736336016631,0.31797388,95251.0,95250.0,0.37025027]
[1736336016861,0.31797388,95251.0,95250.0,0.47455003]
[1736336017289,0.31797388,95251.0,95250.0,0.47555003]
[1736336017508,0.1,95293.0,95251.0,0.023]
[1736336017716,0.00131184,95292.0,95260.0,0.42130751]
[1736336017935,0.00131184,95292.0,95281.0,0.209904]
[1736336018114,0.52479,95292.0,95282.0,0.23336156]
[1736336018312,0.52479,95292.0,95282.0,0.1060618]
[1736336018488,0.10131177,95291.0,95283.0,0.01363889]
[1736336018709,0.62610177,95291.0,95283.0,0.01363889]
[1736336018928,0.1,95287.0,95267.0,0.209934]
[1736336019080,0.1,95269.0,95255.0,0.209962]
[1736336019288,0.00131213,95268.0,95256.0,0.16837976]
[1736336019486,0.52610213,95268.0,95257.0,0.209956]
[1736336019694,0.52599813,95268.0,95258.0,0.209956]
[1736336019901,0.52599813,95268.0,95259.0,0.06408]
[1736336020104,0.00131213,95267.0,95259.0,0.06408]
[1736336020310,0.52610213,95267.0,95255.0,0.419924]
[1736336020519,0.52610213,95267.0,95261.0,0.209947]
[1736336020520,0.52479,95267.0,95261.0,0.209947]
[1736336020817,0.00131219,95266.0,95261.0,0.419896]
[1736336021025,0.52479,95266.0,95263.0,0.209945]
[1736336021249,0.52479,95266.0,95265.0,0.20994]
[1736336021663,0.52479,95266.0,95265.0,0.31423976]
[1736336021868,0.52479,95266.0,95265.0,0.33723976]
[1736336021993,0.52479,95266.0,95265.0,0.37831976]
[1736336022201,0.52479,95266.0,95265.0,0.33723976]
[1736336022424,0.52479,95266.0,95265.0,0.46148035]
[1736336023839,0.52479,95266.0,95265.0,0.46448035]
[1736336024041,0.52479,95266.0,95265.0,0.40040035]
[1736336024421,0.52479,95266.0,95265.0,0.46148035]
[1736336024853,0.52479,95266.0,95265.0,0.46548035]
[1736336025275,0.52479,95266.0,95265.0,0.46148035]
[1736336025487,0.52479,95266.0,95265.0,0.33723976]
[1736336025718,0.52479,95266.0,95265.0,0.40331976]
[1736336026874,0.52479,95266.0,95265.0,0.40131976]
[1736336027274,0.52479,95266.0,95265.0,0.41700698]
[1736336027797,0.52479,95266.0,95265.0,0.35292698]
[1736336028100,0.52479,95266.0,95265.0,0.41700698]
[1736336028325,0.52479,95266.0,95265.0,0.41559161]
[1736336029137,0.52479,95266.0,95265.0,0.07976722]
[1736336029342,0.52479,95266.0,95265.0,0.01568722]
[1736336029564,0.52479,95266.0,95265.0,0.002]
[1736336029794,0.52479,95266.0,95265.0,0.0505981]
[1736336030179,0.52479,95266.0,95265.0,0.06428532]
[1736336031152,0.52479,95266.0,95265.0,0.06228532]
[1736336031363,0.52479,95266.0,95265.0,0.18958508]
[1736336031567,0.52479,95266.0,95265.0,0.19058508]
[1736336031978,0.52479,95266.0,95265.0,0.18958508]
[1736336032379,0.52479,95266.0,95265.0,0.19158508]
[1736336032586,0.87479,95266.0,95265.0,0.01568722]
[1736336032801,0.1,95262.0,95250.0,0.03650572]
[1736336033000,0.62479,95262.0,95256.0,0.20996]
[1736336033212,0.62479,95262.0,95251.0,0.06588]
[1736336033412,0.52479,95262.0,95252.0,0.06588]
[1736336033614,0.1,95257.0,95253.0,0.02066855]
[1736336033827,0.62479,95257.0,95254.0,0.209964]
[1736336034047,0.62479,95257.0,95252.0,0.06588]
[1736336034246,0.52479,95257.0,95253.0,0.023]
[1736336034450,0.52479,95257.0,95256.0,0.20996]
[1736336034847,0.52479,95257.0,95253.0,0.209967]
[1736336035028,0.54404188,95257.0,95253.0,0.209967]
[1736336035171,0.54404188,95257.0,95255.0,0.209962]
[1736336035378,0.54404188,95257.0,95254.0,0.10429976]
[1736336035379,0.54404188,95257.0,95256.0,0.06588]
[1736336035865,0.54404188,95257.0,95256.0,0.33725976]
[1736336036042,0.54404188,95257.0,95256.0,0.48251011]
[1736336037344,0.54404188,95257.0,95256.0,0.41663011]
[1736336037556,0.54404188,95257.0,95256.0,0.48251011]
[1736336037960,0.54404188,95257.0,95256.0,0.48451011]
[1736336039651,0.5266092,95257.0,95256.0,0.41863011]
[1736336039854,0.4636212,95257.0,95256.0,0.48451011]
[1736336040175,0.4216292,95257.0,95256.0,0.41863011]
[1736336040508,0.40237732,95257.0,95256.0,0.33925976]
[1736336040688,0.40237732,95257.0,95256.0,0.38213976]
[1736336040921,0.40237732,95257.0,95256.0,0.31625976]
[1736336041126,0.40237732,95257.0,95256.0,0.38213976]
[1736336041355,0.40237732,95257.0,95256.0,0.40513976]
[1736336041564,0.40237732,95257.0,95256.0,0.47030061]
[1736336042553,0.40237732,95257.0,95256.0,0.48401199]
[1736336043593,0.40237732,95257.0,95256.0,0.50495035]
[1736336043806,0.40237732,95257.0,95256.0,0.5376569]
[1736336044019,0.40237732,95257.0,95256.0,0.51671854]
[1736336044658,0.40237732,95257.0,95256.0,0.48401199]
[1736336045070,0.40237732,95257.0,95256.0,0.41813199]
[1736336045310,0.40237732,95257.0,95256.0,0.12001114]
[1736336045522,0.60237732,95257.0,95256.0,0.01571138]
[1736336045941,0.60237732,95257.0,95256.0,0.002]
[1736336046292,0.50237732,95257.0,95256.0,0.002]
[1736336046496,0.40237732,95257.0,95256.0,0.002]
[1736336046707,0.50237732,95257.0,95256.0,0.06814295]
[1736336046887,0.52178245,95257.0,95256.0,0.05443157]
[1736336047100,0.42178245,95257.0,95256.0,0.06814295]
[1736336047682,0.42178245,95257.0,95256.0,0.13202295]
[1736336048106,0.42178245,95257.0,95256.0,0.07959138]
[1736336048776,0.52178245,95257.0,95256.0,0.01371138]
[1736336048980,0.62178245,95257.0,95256.0,0.002]
[1736336049206,0.52178245,95257.0,95256.0,0.002]
[1736336049408,0.52178245,95257.0,95256.0,0.01571138]
[1736336049633,0.52178245,95257.0,95256.0,0.002]
[1736336049634,0.42178245,95257.0,95256.0,0.002]
[1736336049788,0.52178245,95257.0,95256.0,0.002]
[1736336049996,0.52178245,95257.0,95256.0,0.01571138]
[1736336050196,0.52178245,95257.0,95256.0,0.039233]
[1736336050426,0.52178245,95257.0,95256.0,0.01571138]
[1736336051031,0.2,95244.0,95243.0,0.62479142]
[1736336051232,0.2,95244.0,95214.0,0.2]
[1736336051233,0.1,95222.0,95221.0,0.00071923]
[1736336051442,0.67839001,95222.0,95221.0,0.00071923]
[1736336051635,0.79908974,95222.0,95221.0,0.00071923]
[1736336051841,0.93621657,95222.0,95221.0,0.00071923]
[1736336052041,0.66005,95215.0,95214.0,0.2]
[1736336052252,1.16672708,95215.0,95214.0,0.2]
[1736336052458,1.16672708,95215.0,95214.0,0.178994]
[1736336052663,1.16672708,95215.0,95214.0,0.065978]
[1736336052664,1.26672708,95215.0,95214.0,0.065978]
[1736336052866,1.16672708,95215.0,95214.0,0.065978]
[1736336053082,1.27448748,95215.0,95214.0,0.065978]
[1736336053277,1.27448748,95215.0,95206.0,0.10239193]
[1736336053278,0.35,95213.0,95206.0,0.10239193]
[1736336053531,0.55,95211.0,95210.0,4.5e-07]
[1736336053686,0.55,95207.0,95206.0,0.10239193]
[1736336053882,1.05667708,95207.0,95206.0,0.10239193]
[1736336054086,0.75667708,95207.0,95206.0,0.10239193]
[1736336054290,1.05667708,95207.0,95206.0,0.01836393]
[1736336054492,0.55,95201.0,95182.0,0.00205624]
[1736336054703,1.05667708,95201.0,95182.0,0.00205624]
[1736336055521,0.1,95152.0,95145.0,0.0704]
[1736336055732,0.50237732,95152.0,95147.0,0.210201]
[1736336055941,0.50237732,95152.0,95147.0,0.31450076]
[1736336056141,0.50237732,95152.0,95148.0,0.10429976]
[1736336056351,0.40237732,95152.0,95151.0,0.023]
[1736336056583,0.40237732,95152.0,95142.0,0.210212]
[1736336056779,0.40252811,95152.0,95143.0,0.04713671]
[1736336056984,0.40252811,95152.0,95144.0,0.10429976]
[1736336057187,0.40252811,95152.0,95144.0,0.11602706]
[1736336057391,0.40252811,95152.0,95145.0,0.023]
[1736336057609,0.40252811,95152.0,95147.0,0.023]
[1736336057811,0.40252811,95152.0,95151.0,0.023]
[1736336058208,0.40252811,95152.0,95151.0,0.03470845]
[1736336058433,0.40252811,95152.0,95151.0,0.01170845]
[1736336058635,0.40252811,95152.0,95143.0,0.000105]
[1736336058980,0.40252811,95152.0,95151.0,0.01170845]
[1736336059224,0.40252811,95152.0,95143.0,0.000105]
[1736336059393,0.1,95147.0,95146.0,0.01172191]
[1736336059571,0.2,95133.0,95132.0,4.42414541]
[1736336059773,1.00097708,95133.0,95132.0,3.63659715]
[1736336059952,1.18585022,95133.0,95132.0,3.54276424]
[1736336060159,1.38495022,95133.0,95132.0,3.53476424]
[1736336060369,1.58989122,95133.0,95132.0,3.4943999]
[1736336060571,1.36173122,95133.0,95132.0,3.32237179]
[1736336060782,1.40509968,95133.0,95132.0,2.89387103]
[1736336060986,1.66281968,95133.0,95132.0,2.58149046]
[1736336061199,1.70491936,95133.0,95132.0,2.58149046]
[1736336061406,1.77535936,95133.0,95132.0,2.24574182]
[1736336061608,1.77535936,95133.0,95132.0,1.29644499]
[1736336061821,0.35,95041.0,95040.0,0.00303778]
[1736336062025,0.2,95034.0,95033.0,0.00303779]
[1736336062230,1.17271877,95034.0,95033.0,4e-05]
[1736336062438,0.60237732,95034.0,95033.0,4e-05]
[1736336062645,0.2,95025.0,95024.0,0.1290509]
[1736336062856,0.70799277,95025.0,95024.0,0.1290509]
[1736336063055,0.85667708,95025.0,95024.0,0.1290509]
[1736336063254,0.70667708,95025.0,95024.0,0.1290509]
[1736336063684,0.70667708,95025.0,95010.0,0.00054237]
[1736336063685,0.1,95015.0,95014.0,1.66779889]
[1736336063906,0.1,95015.0,95014.0,1.60778375]
[1736336063907,0.98223708,95015.0,95014.0,1.60778375]
[1736336064087,0.90667708,95015.0,95014.0,1.48573643]
[1736336064289,1.84954743,95015.0,95014.0,0.23962451]
[1736336064520,0.4,95012.0,95011.0,0.55180482]
[1736336064718,0.4,95012.0,95001.0,0.2]
[1736336064719,0.8802549,95002.0,95001.0,0.17176392]
[1736336064959,5.29118969,95002.0,95001.0,0.04002392]
[1736336065097,0.66763436,95001.0,95000.0,3.33383536]
[1736336065299,3.39280508,95001.0,95000.0,2.30197949]
[1736336065503,1.30579302,95001.0,95000.0,2.27241863]
[1736336065723,1.11029302,95001.0,95000.0,2.27241863]
[1736336065892,0.84265866,95001.0,95000.0,2.27241863]
[1736336066114,0.84265866,95001.0,95000.0,2.26630389]
[1736336066115,0.74280907,95001.0,95000.0,2.26630389]
[1736336066313,0.60752773,95001.0,95000.0,1.96040717]
[1736336066599,0.50752773,95001.0,95000.0,2.06470693]
[1736336066798,0.50752773,95001.0,95000.0,1.96040717]
[1736336066799,0.50742273,95001.0,95000.0,1.96040717]